fUSD/lending_fUSD_20250517
["ID","MTS","AMOUNT","RATE_DAILY","PERIOD"]
[361339950,1747491043534,-1200.0,0.00034032,7]
[361339951,1747491043543,-334.87626,0.00034088,7]
[361339952,1747491043553,-500.0,0.00034172,20]
[361339953,1747491043562,-552.62829931,0.0003421,30]
[361339954,1747491043572,-500.0,0.00034246,30]
[361339955,1747491043583,-334.87626,0.00034288,7]
[361339956,1747491043593,-498.59235,0.0003435,2]
[361339957,1747491043603,-29598.812903,0.0003435,3]
[361339958,1747491043613,-13097.2297938,0.0003435,3]
[361339959,1747491043622,-4365.74326459,0.0003436,3]
[361339960,1747491043632,-1200.0,0.0003437,60]
[361339961,1747491043642,-3000.0,0.0003437,60]
[361339962,1747491043651,-220.45926239,0.00034371,7]
[361339963,1747491043660,-150.0,0.000344,7]
[361339964,1747491043670,-4507.57105883,0.0003446,2]
[361339965,1747491043680,-334.87626,0.00034488,7]
[361339966,1747491043693,-160.0,0.000345,9]
[361339967,1747491043702,-500.0,0.00034507,7]
[361339968,1747491043712,-2000.0,0.00034521,120]
[361339970,1747491043721,-150.0,0.00034547,2]
[361339972,1747491043731,-500.0,0.00034552,20]
[361339974,1747491043740,-334.87626,0.00034688,7]
[361339976,1747491043749,-162.71,0.00034695,2]
[361339978,1747491043759,-300.0,0.000347,12]
[361339980,1747491043768,-900.0,0.00034705,7]
[361339982,1747491043778,-17462.9730584,0.00034774,3]
[361339985,1747491043787,-500.0,0.00034778,7]
[361339988,1747491043796,-29598.812903,0.00034785,3]
[361339990,1747491043806,-500.0,0.00034794,30]
[361339993,1747491043815,-5184.33150309,0.00034795,2]
[361339996,1747491043827,-4365.74326459,0.00034798,3]
[361339999,1747491043837,-600.0,0.000348,12]
[361340002,1747491043847,-900.0,0.00034808,7]
[361340004,1747491043856,-150.0,0.00034809,7]
[361340007,1747491043866,-500.0,0.00034811,2]
[361340010,1747491043876,-338.81692043,0.00034826,15]
[361340012,1747491043885,-13097.2297938,0.00034858,3]
[361340013,1747491043894,-5000.0,0.0003487,2]
[361340015,1747491043903,-500.0,0.00034873,5]
[361340017,1747491043912,-327.66705897,0.00034879,2]
[361340019,1747491043921,-334.87626,0.00034888,7]
[361340021,1747491043931,-4365.74326459,0.0003489,3]
[361340023,1747491043940,-1502.32681275,0.000349,120]
[361340025,1747491043949,-593.84371655,0.000349,7]
[361340027,1747491043959,-168.15238171,0.000349,7]
[361340029,1747491043968,-900.0,0.000349,12]
[361340031,1747491043977,-1200.0,0.00034918,60]
[361340033,1747491043986,-3000.0,0.00034918,60]
[361340035,1747491043995,-500.0,0.00034932,21]
[361340037,1747491044004,-552.62829931,0.00034934,31]
[361340039,1747491044014,-29598.812903,0.0003496,3]
[361340042,1747491044024,-26194.4595875,0.0003496,3]
[361340044,1747491044033,-88796.4387089,0.0003496,3]
[361340046,1747491044043,-91680.6085564,0.0003496,3]
[361340048,1747491044052,-395.32687555,0.0003496,2]
[361340050,1747491044061,-29598.812903,0.00034969,3]
[361340080,1747491044327,-26194.4595875,0.00034969,3]
[361340082,1747491044337,-118395.251612,0.0003497,3]
[361340084,1747491044347,-29598.812903,0.0003498,3]
[361340086,1747491044356,-88796.4387089,0.0003498,3]
[361340088,1747491044366,-1304.53335216,0.00034989,30]
[361340090,1747491044375,-403.319997,0.0003499,7]
[361340092,1747491044384,-403.319997,0.0003499,7]
[361340094,1747491044394,-151.0,0.0003499,7]
[361340096,1747491044403,-2730.988847,0.0003499,7]
[361340098,1747491044413,-2730.988847,0.0003499,7]
[361340100,1747491044422,-151.0,0.0003499,7]
[361340102,1747491044432,-151.0,0.0003499,7]
[361340104,1747491044441,-453.054961,0.0003499,7]
[361340106,1747491044452,-453.054961,0.0003499,7]
[361340108,1747491044461,-918.75,0.00034999,120]
[361340110,1747491044471,-50000.0,0.00035,25]
[361340112,1747491044480,-1197.98341079,0.00035,2]
[361340114,1747491044489,-205740.16074883,0.00035,2]
[361340116,1747491044501,-228.21461533,0.00035,2]
[361340118,1747491044510,-533.79470732,0.00035,30]
[361340120,1747491044519,-153.2148898,0.00035,30]
[361340122,1747491044529,-300.0,0.00035,5]
[361340124,1747491044538,-500.0,0.00035,120]
[361340126,1747491044548,-150.0,0.00035,2]
[361340128,1747491044557,-2959.89,0.00035,14]
[361340130,1747491044567,-888.0,0.00035,5]
[361340132,1747491044577,-3900.0,0.00035,7]
[361340134,1747491044587,-8803.92657153,0.00035,7]
[361340136,1747491044597,-2000.0,0.00035,120]
[361340138,1747491044610,-311.0,0.00035,120]
[361340140,1747491044620,-150.0,0.00035,2]
[361340142,1747491044630,-151.0,0.00035,7]
[361340144,1747491044640,-900.0,0.00035,36]
[361340146,1747491044652,-200.0,0.00035,120]
[361340148,1747491044661,-2000.0,0.00035068,120]
[361340150,1747491044671,-334.87626,0.00035088,7]
[361340152,1747491044682,-1909.15631533,0.000351,5]
[361340154,1747491044692,-860.92,0.000351,2]
[361340155,1747491044702,-500.0,0.00035114,7]
[361340157,1747491044711,-4507.57105883,0.0003514,2]
[361340159,1747491044721,-277.35679052,0.00035208,2]
[361340161,1747491044730,-500.0,0.00035209,2]
[361340163,1747491044740,-150.0,0.00035219,7]
[361340165,1747491044749,-150.0,0.00035219,7]
[361340167,1747491044759,-334.87626,0.00035288,7]
[361340169,1747491044769,-2500.0,0.000353,14]
[361340171,1747491044779,-500.0,0.00035311,21]
[361340172,1747491044788,-500.0,0.00035342,30]
[361340174,1747491044798,-485.81,0.00035375,2]
[361340176,1747491044807,-500.0,0.00035385,7]
[361340178,1747491044817,-500.0,0.000354,5]
[361340180,1747491044829,-151.79,0.00035455,2]
[361340182,1747491044838,-1200.0,0.00035466,60]
[361340184,1747491044849,-3000.0,0.00035466,60]
[361340186,1747491044860,-334.87626,0.00035488,7]
[361340188,1747491044870,-250.0,0.000355,60]
[361340190,1747491044880,-160.0,0.000355,13]
[361340192,1747491044889,-900.0,0.0003556,7]
[361340194,1747491044899,-2000.0,0.00035616,120]
[361340196,1747491044909,-150.0,0.00035628,7]
[361340198,1747491044920,-552.62829931,0.00035659,33]
[361340200,1747491044930,-964.474319,0.0003567,7]
[361340202,1747491044940,-334.87626,0.00035688,7]
[361340204,1747491044950,-500.0,0.00035691,22]
[361340206,1747491044961,-151.08,0.000357,2]
[361340208,1747491044970,-153.98,0.000357,31]
[361340210,1747491044979,-153.98,0.000357,31]
[361340212,1747491044989,-153.98,0.000357,31]
[361340214,1747491044998,-153.98,0.000357,31]
[361340216,1747491045008,-153.98,0.000357,31]
[361340218,1747491045017,-153.98,0.000357,31]
[361340220,1747491045027,-153.98,0.000357,31]
[361340222,1747491045036,-153.98,0.000357,31]
[361340224,1747491045046,-153.98,0.000357,31]
[361340226,1747491045055,-153.98,0.000357,31]
[361340228,1747491045065,-153.98,0.000357,31]
[361340230,1747491045075,-153.98,0.000357,31]
[361340232,1747491045085,-153.98,0.000357,31]
[361340234,1747491045095,-153.98,0.000357,31]
[361340236,1747491045105,-153.98,0.000357,31]
[361340238,1747491045115,-153.98,0.000357,31]
[361340240,1747491045125,-900.0,0.00035737,7]
[361340242,1747491045134,-338.81692043,0.00035772,15]
[361340244,1747491045144,-152.0,0.00035795,5]
[361340246,1747491045154,-4507.57105883,0.0003582,2]
[361340248,1747491045163,-403.319997,0.00035853,7]
[361340250,1747491045173,-403.319997,0.00035853,7]
[361340252,1747491045182,-2730.988847,0.00035853,7]
[361340254,1747491045191,-2730.988847,0.00035853,7]
[361340256,1747491045200,-151.0,0.00035853,7]
[361340258,1747491045209,-151.0,0.00035853,7]
[361340260,1747491045219,-453.054961,0.00035853,7]
[361340262,1747491045228,-453.054961,0.00035853,7]
[361340264,1747491045237,-900.0,0.00035876,7]
[361340266,1747491045246,-334.87626,0.00035888,7]
[361340268,1747491045256,-3013.88642,0.00035888,30]
[361340269,1747491045265,-151.0,0.0003589,7]
[361340271,1747491045274,-286.47195,0.0003589,7]
[361340273,1747491045284,-486.62083013,0.0003589,30]
[361340275,1747491045293,-13700.26249512,0.0003591,2]
[361340277,1747491045302,-500.0,0.00035911,7]
[361340279,1747491045312,-150.0,0.00035917,2]
[361340281,1747491045321,-192.37082361,0.00035988,7]
[361340283,1747491045331,-151.0,0.0003599,7]
[361340285,1747491045340,-151.0,0.0003599,7]
[361340287,1747491045350,-151.0,0.0003599,7]
[361340289,1747491045359,-918.75,0.00035999,120]
[361340291,1747491045369,-918.75,0.00035999,120]
[361340293,1747491045381,-918.75,0.00035999,120]
[361340295,1747491045391,-918.75,0.00035999,120]
[361340297,1747491045400,-918.75,0.00035999,120]
[361340299,1747491045410,-918.94126781,0.00035999,120]
[361340301,1747491045419,-50000.0,0.00036,26]
[361340303,1747491045428,-900.0,0.00036,37]
[361340305,1747491045438,-227414.78637344,0.00036,2]
[361340307,1747491045447,-2000.0,0.00036,120]
[361340309,1747491045456,-38335.66,0.00036,14]
[361340311,1747491045467,-1356.85390985,0.00036,120]
[361340313,1747491045476,-151.0,0.00036,7]
[361340315,1747491045486,-151.372293,0.00036,7]
[361340317,1747491045495,-300.00000001,0.00036,5]
[361340319,1747491045505,-403.319997,0.00036,7]
[361340321,1747491045515,-403.319997,0.00036,7]
[361340323,1747491045524,-2730.988847,0.00036,7]
[361340325,1747491045533,-2730.988847,0.00036,7]
[361340327,1747491045543,-151.0,0.00036,7]
[361340329,1747491045552,-151.0,0.00036,7]
[361340331,1747491045562,-151.0,0.00036,7]
[361340333,1747491045571,-453.054961,0.00036,7]
[361340335,1747491045582,-453.054961,0.00036,7]
[361340337,1747491045592,-1200.0,0.00036014,60]
[361340339,1747491045603,-3000.0,0.00036014,60]
[361340341,1747491045612,-150.0,0.00036038,7]
[361340343,1747491045622,-500.0,0.00036071,23]
[361340345,1747491045632,-334.87626,0.00036088,7]
[361340347,1747491045641,-3013.88642,0.00036088,30]
[361340349,1747491045651,-900.0,0.00036105,7]
[361340351,1747491045661,-768.0,0.00036106,30]
[361340353,1747491045671,-593.84371651,0.0003615,9]
[361340355,1747491045680,-327.66705896,0.00036195,2]
[361340357,1747491045689,-151.0,0.00036232,7]
[361340359,1747491045699,-334.87626,0.00036288,7]
[361340361,1747491045708,-3013.88642,0.00036288,30]
[361340363,1747491045717,-449.61,0.0003632,2]
[361340365,1747491045727,-552.62829931,0.00036383,34]
[361340367,1747491045736,-150.0,0.00036447,7]
[361340369,1747491045746,-150.0,0.00036447,7]
[361340371,1747491045756,-500.0,0.00036451,23]
[361340373,1747491045766,-1200.0,0.00036484,7]
[361340375,1747491045776,-334.87626,0.00036488,7]
[361340377,1747491045785,-3013.88642,0.00036488,30]
[361340379,1747491045795,-160.0,0.000365,17]
[361340381,1747491045805,-4507.57105883,0.000365,2]
[361340383,1747491045815,-3000.0,0.00036562,60]
[361340385,1747491045824,-287.61899177,0.00036577,2]
[361340387,1747491045834,-1200.0,0.00036579,7]
[361340389,1747491045844,-500.0,0.00036582,7]
[361340391,1747491045854,-1200.0,0.00036597,7]
[361340393,1747491045863,-500.0,0.00036653,7]
[361340395,1747491045872,-334.87626,0.00036688,7]
[361340397,1747491045882,-3013.88642,0.00036688,30]
[361340399,1747491045891,-338.81692043,0.00036717,15]
[361340400,1747491045900,-833.87,0.000368,90]
[361340403,1747491045910,-500.0,0.00036831,24]
[361340404,1747491045919,-498.59234,0.0003685,2]
[361340406,1747491045929,-150.0,0.00036857,7]
[361340408,1747491045938,-3013.88642,0.00036888,30]
[361340410,1747491045948,-2582.76,0.000369,7]
[361340412,1747491045957,-1200.0,0.000369,13]
[361340414,1747491045967,-500.0,0.00036977,7]
[361340416,1747491045976,-50000.0,0.00037,27]
[361340418,1747491045985,-500.0,0.00037,60]
[361340420,1747491045994,-10320.38837468,0.00037,30]
[361340422,1747491046005,-150.0,0.00037,2]
[361340424,1747491046014,-900.0,0.00037,38]
[361340426,1747491046023,-500.0,0.00037,120]
[361340428,1747491046033,-3500.0,0.00037,3]
[361340430,1747491046043,-151.0,0.00037,7]
[361340432,1747491046052,-334.87626,0.00037088,7]
[361340434,1747491046062,-3013.88642,0.00037088,30]
[361340436,1747491046073,-552.62829931,0.00037107,36]
[361340438,1747491046083,-1200.0,0.0003711,60]
[361340440,1747491046092,-170.02,0.00037172,2]
[361340442,1747491046102,-170.02,0.00037172,2]
[361340444,1747491046111,-170.02,0.00037172,2]
[361340447,1747491046131,-170.02,0.00037172,2]
[361340449,1747491046140,-352.87,0.00037178,2]
[361340451,1747491046150,-4507.57105883,0.0003718,2]
[361340453,1747491046159,-1000.0,0.00037188,2]
[361340455,1747491046168,-7981.0383388,0.000372,120]
[361340457,1747491046178,-7981.03833876,0.000372,120]
[361340459,1747491046187,-7981.03833876,0.000372,120]
[361340461,1747491046197,-7981.03833876,0.000372,120]
[361340463,1747491046206,-500.0,0.0003721,24]
[361340465,1747491046216,-273.17,0.00037249,2]
[361340467,1747491046226,-150.0,0.00037266,7]
[361340469,1747491046235,-150.0,0.00037287,2]
[361340471,1747491046245,-3013.88642,0.00037288,30]
[361340473,1747491046254,-334.87626,0.00037288,7]
[361340475,1747491046264,-593.84371651,0.000374,10]
[361340477,1747491046273,-151.0,0.00037401,7]
[361340479,1747491046282,-200.0,0.00037401,13]
[361340481,1747491046291,-200.0,0.00037401,13]
[361340483,1747491046301,-200.0,0.00037401,13]
[361340485,1747491046310,-200.0,0.00037401,13]
[361340487,1747491046319,-200.0,0.00037401,13]
[361340489,1747491046328,-200.0,0.00037401,13]
[361340491,1747491046338,-200.0,0.00037401,2]
[361340493,1747491046347,-200.0,0.00037401,2]
[361340495,1747491046356,-200.0,0.00037401,2]
[361340497,1747491046368,-200.0,0.00037401,2]
[361340499,1747491046377,-200.0,0.00037401,2]
[361340501,1747491046387,-200.0,0.00037401,2]
[361340503,1747491046397,-200.0,0.00037401,2]
[361340505,1747491046406,-200.0,0.00037401,2]
[361340507,1747491046415,-200.0,0.00037401,2]
[361340509,1747491046424,-200.0,0.00037401,2]
[361340511,1747491046434,-200.0,0.00037401,2]
[361340513,1747491046445,-200.0,0.00037401,13]
[361340515,1747491046455,-200.0,0.00037401,2]
[361340517,1747491046464,-200.0,0.00037401,2]
[361340519,1747491046474,-200.0,0.00037401,2]
[361340521,1747491046483,-200.0,0.00037401,2]
[361340523,1747491046492,-200.0,0.00037401,2]
[361340525,1747491046501,-200.0,0.00037401,2]
[361340527,1747491046511,-200.0,0.00037401,2]
[361340529,1747491046520,-200.0,0.00037401,2]
[361340531,1747491046529,-200.0,0.00037401,2]
[361340533,1747491046538,-200.0,0.00037401,2]
[361340535,1747491046547,-200.0,0.00037401,13]
[361340537,1747491046557,-200.0,0.00037401,13]
[361340539,1747491046566,-200.0,0.00037401,13]
[361340541,1747491046576,-200.0,0.00037401,2]
[361340543,1747491046587,-200.0,0.00037401,2]
[361340544,1747491046597,-200.0,0.00037401,2]
[361340547,1747491046609,-200.0,0.00037401,13]
[361340549,1747491046618,-200.0,0.00037401,2]
[361340551,1747491046628,-200.0,0.00037401,2]
[361340552,1747491046638,-200.0,0.00037401,2]
[361340564,1747491046647,-200.0,0.00037401,2]
[361340566,1747491046752,-200.0,0.00037401,2]
[361340568,1747491046761,-200.0,0.00037401,2]
[361340570,1747491046771,-200.0,0.00037401,2]
[361340572,1747491046780,-203.0,0.00037401,13]
[361340574,1747491046789,-200.0,0.00037401,2]
[361340576,1747491046799,-200.0,0.00037401,2]
[361340578,1747491046816,-200.0,0.00037401,2]
[361340580,1747491046835,-331.0,0.00037401,2]
[361340582,1747491046850,-200.0,0.00037401,13]
[361340584,1747491046860,-200.0,0.00037401,13]
[361340586,1747491046871,-603.35523917,0.00037454,7]
[361340588,1747491046880,-500.0,0.00037463,7]
[361340590,1747491046889,-163.8203459,0.00037473,7]
[361340592,1747491046898,-3013.88642,0.00037488,30]
[361340594,1747491046907,-334.87626,0.00037488,7]
[361340596,1747491046916,-160.0,0.000375,22]
[361340598,1747491046925,-327.66705896,0.00037512,2]
[361340599,1747491046934,-4212.42722854,0.0003759,2]
[361340601,1747491046943,-500.0,0.0003759,25]
[361340603,1747491046953,-690.2082666,0.00037612,5]
[361340605,1747491046961,-500.0,0.00037633,7]
[361340607,1747491046970,-485.81,0.00037639,2]
[361340609,1747491046979,-3000.0,0.00037658,60]
[361340611,1747491046989,-338.81692043,0.00037663,15]
[361340613,1747491046998,-500.0,0.00037667,7]
[361340614,1747491047008,-150.0,0.00037676,7]
[361340615,1747491047017,-150.0,0.00037676,7]
[361340616,1747491047026,-3013.88642,0.00037688,30]
[361340617,1747491047036,-334.87626,0.00037688,7]
[361340618,1747491047045,-900.0,0.00037755,7]
[361340619,1747491047054,-888.0,0.00037802,5]
[361340620,1747491047063,-500.0,0.00037805,7]
[361340621,1747491047073,-152.0,0.00037824,6]
[361340622,1747491047083,-552.62829931,0.00037831,37]
[361340623,1747491047092,-4507.57105883,0.0003786,2]
[361340624,1747491047101,-3013.88642,0.00037888,30]
[361340625,1747491047110,-334.87626,0.00037888,7]
[361340626,1747491047119,-78063.53255813,0.000379,2]
[361340627,1747491047130,-153.98,0.000379,31]
[361340628,1747491047140,-153.98,0.000379,31]
[361340629,1747491047150,-153.98,0.000379,31]
[361340630,1747491047159,-153.98,0.000379,31]
[361340631,1747491047169,-153.98,0.000379,31]
[361340633,1747491047178,-153.98,0.000379,31]
[361340635,1747491047187,-153.98,0.000379,31]
[361340637,1747491047197,-153.98,0.000379,31]
[361340639,1747491047206,-153.98,0.000379,31]
[361340640,1747491047215,-153.98,0.000379,31]
[361340643,1747491047225,-153.98,0.000379,31]
[361340645,1747491047234,-153.98,0.000379,31]
[361340646,1747491047243,-153.98,0.000379,31]
[361340648,1747491047252,-153.98,0.000379,31]
[361340650,1747491047261,-153.98,0.000379,31]
[361340653,1747491047272,-153.98,0.000379,31]
[361340654,1747491047282,-298.26089446,0.00037946,2]
[361340657,1747491047291,-500.0,0.0003797,26]
[361340659,1747491047301,-50000.0,0.00038,28]
[361340661,1747491047310,-561.93608535,0.00038,2]
[361340663,1747491047319,-900.0,0.00038,39]
[361340665,1747491047328,-4000.0,0.00038,10]
[361340666,1747491047337,-2000.0,0.00038,120]
[361340669,1747491047347,-233.0,0.00038,120]
[361340670,1747491047356,-151.0,0.00038,7]
[361340673,1747491047365,-403.319997,0.00038,7]
[361340674,1747491047374,-403.319997,0.00038,7]
[361340676,1747491047383,-2730.988847,0.00038,7]
[361340679,1747491047392,-2730.988847,0.00038,7]
[361340681,1747491047402,-151.0,0.00038,7]
[361340683,1747491047411,-273.553208,0.00038,7]
[361340684,1747491047420,-453.054961,0.00038,7]
[361340686,1747491047429,-453.054961,0.00038,7]
[361340688,1747491047438,-500.0,0.00038011,5]
[361340690,1747491047448,-164.00770883,0.00038083,7]
[361340692,1747491047457,-150.0,0.00038085,7]
[361340694,1747491047466,-3013.88642,0.00038088,30]
[361340696,1747491047476,-334.87626,0.00038088,7]
[361340698,1747491047485,-276.236985,0.00038088,7]
[361340700,1747491047495,-1200.0,0.00038089,7]
[361340702,1747491047504,-1200.0,0.0003813,7]
[361340704,1747491047514,-1000.0,0.0003814,5]
[361340706,1747491047523,-900.0,0.00038166,7]
[361340708,1747491047532,-1200.0,0.00038206,60]
[361340710,1747491047542,-159.14,0.00038229,120]
[361340712,1747491047551,-3013.88642,0.00038288,30]
[361340714,1747491047560,-334.87626,0.00038288,7]
[361340716,1747491047570,-500.0,0.0003835,26]
[361340718,1747491047579,-900.0,0.00038378,7]
[361340720,1747491047588,-3013.88642,0.00038488,30]
[361340722,1747491047597,-334.87626,0.00038488,7]
[361340724,1747491047609,-150.0,0.00038495,7]
[361340726,1747491047619,-160.0,0.000385,26]
[361340728,1747491047628,-500.0,0.00038523,7]
[361340730,1747491047637,-4507.57105883,0.0003854,2]
[361340732,1747491047647,-552.62829931,0.00038555,38]
[361340734,1747491047656,-534.25769734,0.00038606,7]
[361340736,1747491047665,-593.84371651,0.0003865,12]
[361340738,1747491047674,-150.0,0.00038657,2]
[361340740,1747491047683,-3013.88642,0.00038688,30]
[361340742,1747491047693,-334.87626,0.00038688,7]
[361340744,1747491047702,-4000.0,0.00038717,8]
[361340746,1747491047712,-500.0,0.0003873,27]
[361340748,1747491047721,-3000.0,0.00038754,60]
[361340750,1747491047731,-900.0,0.00038766,7]
[361340751,1747491047740,-6989.67,0.00038767,30]
[361340753,1747491047750,-6989.67,0.00038767,30]
[361340755,1747491047759,-6989.67,0.00038767,30]
[361340757,1747491047769,-6989.67,0.00038767,30]
[361340759,1747491047779,-500.0,0.00038798,7]
[361340761,1747491047788,-327.66705896,0.00038828,2]
[361340763,1747491047797,-4000.0,0.00038846,8]
[361340765,1747491047806,-334.87626,0.00038888,7]
[361340767,1747491047815,-150.0,0.00038904,7]
[361340769,1747491047824,-150.0,0.00038904,7]
[361340771,1747491047834,-500.0,0.00038973,7]
[361340773,1747491047844,-4000.0,0.00038974,8]
[361340775,1747491047853,-50000.0,0.00039,29]
[361340777,1747491047863,-1260.4,0.00039,120]
[361340779,1747491047872,-900.0,0.00039,40]
[361340781,1747491047881,-1222.87280999,0.00039,120]
[361340783,1747491047890,-1441.97264857,0.00039,120]
[361340785,1747491047899,-1150.71140017,0.00039,120]
[361340787,1747491047909,-930.0330955,0.00039,2]
[361340789,1747491047918,-244.89923,0.00039,120]
[361340790,1747491047927,-20000.0,0.00039,120]
[361340791,1747491047936,-150.0,0.00039,120]
[361340792,1747491047946,-3022.32281748,0.00039,120]
[361340793,1747491047955,-500.0,0.00039,30]
[361340794,1747491047964,-151.0,0.00039,14]
[361340795,1747491047973,-373.29194601,0.00039027,2]
[361340796,1747491047982,-6989.67,0.00039041,30]
[361340797,1747491047991,-6989.67,0.00039041,30]
[361340798,1747491048000,-500.0,0.00039052,7]
[361340799,1747491048010,-3013.88642,0.00039088,30]
[361340800,1747491048019,-334.87626,0.00039088,7]
[361340801,1747491048029,-4000.0,0.00039102,8]
[361340802,1747491048038,-500.0,0.0003911,27]
[361340803,1747491048047,-900.0,0.00039131,7]
[361340804,1747491048057,-4507.57105883,0.0003922,2]
[361340805,1747491048066,-4000.0,0.0003923,8]
[361340806,1747491048076,-552.62829931,0.00039279,40]
[361340807,1747491048086,-3013.88642,0.00039288,30]
[361340808,1747491048095,-334.87626,0.00039288,7]
[361340809,1747491048105,-1200.0,0.00039302,60]
[361340810,1747491048114,-150.0,0.00039314,7]
[361340811,1747491048123,-500.0,0.00039314,7]
[361340812,1747491048132,-749.12054203,0.00039315,2]
[361340813,1747491048142,-6989.67,0.00039315,30]
[361340814,1747491048151,-6989.67,0.00039315,30]
[361340815,1747491048161,-309.29654756,0.00039315,2]
[361340816,1747491048170,-500.0,0.00039332,7]
[361340817,1747491048180,-4000.0,0.00039359,8]
[361340818,1747491048189,-4000.0,0.00039487,8]
[361340819,1747491048198,-3013.88642,0.00039488,30]
[361340820,1747491048207,-334.87626,0.00039488,7]
[361340821,1747491048217,-500.0,0.00039489,28]
[361340822,1747491048226,-1200.0,0.00039493,7]
[361340823,1747491048234,-160.0,0.000395,30]
[361340824,1747491048243,-900.0,0.00039554,7]
[361340825,1747491048251,-1200.0,0.00039579,7]
[361340826,1747491048261,-300.0,0.00039588,2]
[361340827,1747491048270,-150.0,0.00039588,2]
[361340828,1747491048278,-150.0,0.00039588,2]
[361340829,1747491048287,-150.0,0.00039588,2]
[361340830,1747491048296,-317.07,0.00039588,2]
[361340831,1747491048305,-6989.67,0.00039589,30]
[361340832,1747491048314,-6989.67,0.00039589,30]
[361340833,1747491048322,-4000.0,0.00039615,8]
[361340834,1747491048332,-900.0,0.00039681,7]
[361340835,1747491048341,-3013.88642,0.00039688,30]
[361340836,1747491048350,-334.87626,0.00039688,7]
[361340837,1747491048359,-1500.0,0.000397,14]
[361340838,1747491048368,-176.78455514,0.000397,2]
[361340839,1747491048378,-635.0,0.00039716,60]
[361340840,1747491048387,-150.0,0.00039723,7]
[361340841,1747491048396,-4000.0,0.00039743,8]
[361340842,1747491048405,-900.0,0.00039747,7]
[361340843,1747491048415,-999.00000001,0.00039764,3]
[361340844,1747491048424,-62166.06037134,0.00039773,2]
[361340845,1747491048433,-77157.4047805,0.00039773,2]
[361340846,1747491048443,-16524.0556218,0.00039773,2]
[361340847,1747491048454,-4767.3691497,0.00039773,2]
[361340848,1747491048463,-13046.1739263,0.00039773,2]
[361340849,1747491048472,-12672.6440482,0.00039773,2]
[361340850,1747491048482,-151.0,0.00039773,14]
[361340851,1747491048492,-403.319997,0.00039773,14]
[361340852,1747491048501,-403.319997,0.00039773,14]
[361340853,1747491048511,-2730.988847,0.00039773,14]
[361340854,1747491048520,-2730.988847,0.00039773,14]
[361340855,1747491048530,-151.0,0.00039773,14]
[361340856,1747491048539,-453.054961,0.00039773,14]
[361340857,1747491048548,-453.054961,0.00039773,14]
[361340858,1747491048558,-933.7718852,0.00039788,2]
[361340859,1747491048569,-395.32687555,0.0003979,2]
[361340860,1747491048579,-1092810.47728049,0.000398,120]
[361340861,1747491048588,-370000.0,0.000398,120]
[361340862,1747491048598,-730.90227584,0.000398,2]
[361340863,1747491048614,-151.0,0.000398,14]
[361340864,1747491048624,-403.319997,0.000398,14]
[361340865,1747491048634,-403.319997,0.000398,14]
[361340866,1747491048645,-2730.988847,0.000398,14]
[361340867,1747491048654,-2730.988847,0.000398,14]
[361340868,1747491048664,-300.0,0.000398,14]
[361340869,1747491048673,-151.0,0.000398,14]
[361340870,1747491048683,-151.0,0.000398,14]